fUST/lending_fUST_20251213
["ID","MTS","AMOUNT","RATE_DAILY","PERIOD"]
[398409346,1765617097594,-644.23,0.00029041,3]
[398409347,1765617097603,-500.0,0.00029041,3]
[398409348,1765617097612,-501.58600493,0.00029041,3]
[398409349,1765617097621,-1282.87,0.00029041,3]
[398409350,1765617097630,-562.72,0.00029041,3]
[398409351,1765617097639,-749.99,0.00029041,3]
[398409352,1765617097648,-1878.73,0.00029041,3]
[398409353,1765617097658,-500.0,0.00029041,3]
[398409354,1765617097667,-502.3054025,0.00029041,3]
[398409355,1765617097676,-911.18,0.00029041,3]
[398409356,1765617097686,-1507.87,0.00029041,3]
[398409357,1765617097696,-500.0,0.00029041,3]
[398409358,1765617097706,-690.11,0.00029041,3]
[398409359,1765617097716,-927.44,0.00029041,3]
[398409360,1765617097725,-540.30803904,0.00029041,3]
[398409361,1765617097735,-500.0,0.00029041,3]
[398409362,1765617097745,-1770.22,0.00029041,3]
[398409363,1765617097755,-750.26,0.00029041,3]
[398409364,1765617097764,-500.0,0.00029041,3]
[398409365,1765617097775,-500.0,0.00029041,3]
[398409366,1765617097785,-787.25,0.00029041,3]
[398409367,1765617097795,-863.65,0.00029041,3]
[398409368,1765617097805,-500.0,0.00029041,3]
[398409369,1765617097815,-500.0,0.00029041,3]
[398409370,1765617097825,-1287.94,0.00029041,3]
[398409371,1765617097834,-500.0,0.00029041,3]
[398409372,1765617097844,-2003.21,0.00029041,3]
[398409373,1765617097853,-500.0,0.00029041,3]
[398409374,1765617097863,-500.0,0.00029041,3]
[398409375,1765617097873,-248.92895171,0.00029041,3]
[398409376,1765617097883,-757.47,0.00029041,3]
[398409377,1765617097893,-1230.98,0.00029041,3]
[398409378,1765617097902,-500.0,0.00029041,3]
[398409379,1765617097912,-742.57,0.00029041,3]
[398409380,1765617097921,-500.0,0.00029041,3]
[398409381,1765617097931,-1040.17,0.00029041,3]
[398409382,1765617097940,-1961.04,0.00029041,3]
[398409383,1765617097950,-1227.64,0.00029041,3]
[398409384,1765617097959,-500.0,0.00029041,3]
[398409385,1765617097968,-500.0,0.00029041,3]
[398409386,1765617097978,-804.14,0.00029041,3]
[398409387,1765617097988,-500.0,0.00029041,3]
[398409388,1765617098001,-2358.14,0.00029041,3]
[398409389,1765617098011,-1602.27,0.00029041,3]
[398409390,1765617098021,-500.0,0.00029041,3]
[398409391,1765617098031,-500.0,0.00029041,3]
[398409392,1765617098041,-332.16380848,0.00029041,3]
[398409393,1765617098051,-500.0,0.00029041,3]
[398409394,1765617098061,-500.0,0.00029041,3]
[398409395,1765617098071,-758.05,0.00029041,3]
[398409396,1765617098081,-2188.95,0.00029041,3]
[398409397,1765617098091,-500.0,0.00029041,3]
[398409398,1765617098101,-298.73123624,0.00029041,3]
[398409399,1765617098111,-500.0,0.00029041,3]
[398409400,1765617098121,-1467.28,0.00029041,3]
[398409401,1765617098131,-643.24,0.00029041,3]
[398409402,1765617098141,-1893.58,0.00029041,3]
[398409403,1765617098150,-500.0,0.00029041,3]
[398409404,1765617098160,-2044.9,0.00029041,3]
[398409405,1765617098169,-500.0,0.00029041,3]
[398409406,1765617098178,-500.0,0.00029041,3]
[398409407,1765617098187,-882.53,0.00029041,3]
[398409408,1765617098196,-797.56,0.00029041,3]
[398409409,1765617098206,-500.0,0.00029041,3]
[398409410,1765617098215,-2394.02,0.00029041,3]
[398409411,1765617098225,-601.26435927,0.00029041,3]
[398409412,1765617098234,-500.0,0.00029041,3]
[398409413,1765617098244,-2469.26,0.00029041,3]
[398409414,1765617098253,-2460.35,0.00029041,3]
[398409415,1765617098263,-500.0,0.00029041,3]
[398409416,1765617098272,-621.99,0.00029041,3]
[398409417,1765617098282,-725.09,0.00029041,3]
[398409419,1765617098292,-500.0,0.00029041,3]
[398409420,1765617098304,-500.0,0.00029041,3]
[398409421,1765617098313,-500.0,0.00029041,3]
[398409422,1765617098323,-500.0,0.00029041,3]
[398409423,1765617098332,-1840.29,0.00029041,3]
[398409424,1765617098342,-500.0,0.00029041,3]
[398409425,1765617098351,-2395.32,0.00029041,3]
[398409426,1765617098361,-539.27,0.00029041,3]
[398409427,1765617098371,-1618.61,0.00029041,3]
[398409428,1765617098381,-1165.82,0.00029041,3]
[398409429,1765617098391,-501.63732811,0.00029041,3]
[398409430,1765617098401,-2371.07,0.00029041,3]
[398409431,1765617098411,-500.0,0.00029041,3]
[398409432,1765617098420,-1656.77,0.00029041,3]
[398409433,1765617098430,-2139.92,0.00029041,3]
[398409434,1765617098440,-2033.6,0.00029041,3]
[398409435,1765617098450,-1956.59,0.00029041,3]
[398409436,1765617098459,-308.55006956,0.00029041,3]
[398409437,1765617098469,-1222.88,0.00029041,3]
[398409438,1765617098479,-2211.14,0.00029041,3]
[398409439,1765617098489,-1292.66,0.00029041,3]
[398409440,1765617098498,-1054.22,0.00029041,3]
[398409441,1765617098508,-500.0,0.00029041,3]
[398409442,1765617098518,-2063.19,0.00029041,3]
[398409443,1765617098528,-546.02,0.00029041,3]
[398409444,1765617098537,-1532.63,0.00029041,3]
[398409445,1765617098546,-2352.93,0.00029041,3]
[398409446,1765617098556,-500.0,0.00029041,3]
[398409447,1765617098567,-500.0,0.00029041,3]
[398409448,1765617098577,-870.12,0.00029041,2]
[398409449,1765617098587,-500.0,0.00029041,3]
[398409450,1765617098597,-576.15,0.00029041,3]
[398409451,1765617098607,-183.81284571,0.00029041,3]
[398409452,1765617098618,-500.0,0.00029041,3]
[398409453,1765617098628,-500.0,0.00029041,3]
[398409454,1765617098638,-501.36428523,0.00029041,3]
[398409455,1765617098648,-2186.76,0.00029041,3]
[398409456,1765617098658,-500.0,0.00029041,3]
[398409457,1765617098668,-1646.45,0.00029041,3]
[398409458,1765617098678,-500.0,0.00029041,3]
[398409459,1765617098687,-2156.34,0.00029041,3]
[398409460,1765617098697,-1000.0,0.00029041,2]
[398409461,1765617098708,-500.0,0.00029041,3]
[398409462,1765617098718,-500.0,0.00029041,3]
[398409463,1765617098728,-500.0,0.00029041,3]
[398409464,1765617098738,-500.0,0.00029041,3]
[398409465,1765617098748,-2095.52,0.00029041,3]
[398409466,1765617098758,-2472.36,0.00029041,3]
[398409467,1765617098767,-504.3,0.00029041,3]
[398409468,1765617098777,-1173.99,0.00029041,3]
[398409469,1765617098788,-1669.5,0.00029041,3]
[398409470,1765617098798,-500.0,0.00029041,3]
[398409471,1765617098809,-8313.59,0.00029041,3]
[398409472,1765617098820,-2189.26,0.00029041,3]
[398409473,1765617098831,-500.0,0.00029041,3]
[398409474,1765617098841,-756.99,0.00029041,3]
[398409475,1765617098851,-500.0,0.00029041,3]
[398409476,1765617098861,-341.33,0.00029041,3]
[398409477,1765617098871,-500.0,0.00029041,3]
[398409478,1765617098881,-2196.27,0.00029041,3]
[398409479,1765617098890,-500.0,0.00029041,3]
[398409480,1765617098900,-2077.28,0.00029041,3]
[398409481,1765617098910,-500.0,0.00029041,3]
[398409482,1765617098919,-500.0,0.00029041,3]
[398409483,1765617098929,-2178.91,0.00029041,3]
[398409484,1765617098939,-1039.54,0.00029041,3]
[398409485,1765617098948,-1677.78,0.00029041,3]
[398409486,1765617098957,-500.0,0.00029088,3]
[398409487,1765617098967,-500.0,0.00029088,3]
[398409488,1765617098976,-500.0,0.00029088,3]
[398409489,1765617098985,-168.14750946,0.00029088,3]
[398409490,1765617098998,-521.5360652,0.00029088,3]
[398409491,1765617099007,-500.0,0.00029088,3]
[398409492,1765617099016,-500.0,0.00029088,3]
[398409493,1765617099026,-909.28,0.00029094,3]
[398409494,1765617099035,-156.38,0.000291,7]
[398409495,1765617099044,-159.22180349,0.00029173,30]
[398409496,1765617099054,-804.94,0.00029315,3]
[398409497,1765617099063,-500.0,0.00029315,3]
[398409498,1765617099075,-500.0,0.00029315,3]
[398409499,1765617099084,-1145.8,0.00029315,3]
[398409500,1765617099093,-897.33,0.00029315,3]
[398409501,1765617099103,-169.828461,0.00029315,3]
[398409502,1765617099112,-417.78911103,0.00029315,3]
[398409503,1765617099121,-500.0,0.00029315,3]
[398409504,1765617099131,-500.0,0.00029315,3]
[398409505,1765617099141,-1068.39,0.00029315,3]
[398409506,1765617099150,-1993.075405,0.00029315,3]
[398409507,1765617099159,-500.0,0.00029315,3]
[398409508,1765617099168,-500.0,0.00029315,3]
[398409509,1765617099177,-500.0,0.00029315,3]
[398409510,1765617099186,-645.92,0.00029315,3]
[398409511,1765617099196,-553.99,0.00029315,3]
[398409512,1765617099205,-500.0,0.00029315,3]
[398409513,1765617099215,-500.0,0.00029315,3]
[398409514,1765617099225,-500.0,0.00029315,3]
[398409515,1765617099234,-500.0,0.00029315,3]
[398409516,1765617099243,-500.0,0.00029315,3]
[398409517,1765617099253,-500.0,0.00029315,3]
[398409518,1765617099262,-660.68,0.00029315,3]
[398409519,1765617099272,-856.0,0.00029315,3]
[398409520,1765617099281,-500.0,0.00029315,3]
[398409521,1765617099289,-500.0,0.00029315,3]
[398409522,1765617099299,-790.78,0.00029315,3]
[398409523,1765617099308,-500.0,0.00029315,3]
[398409524,1765617099318,-512.89,0.00029315,3]
[398409525,1765617099326,-500.0,0.00029315,3]
[398409526,1765617099336,-500.0,0.00029315,3]
[398409527,1765617099347,-502.5620279,0.00029315,3]
[398409528,1765617099357,-178.05922924,0.00029315,3]
[398409529,1765617099366,-500.0,0.00029315,3]
[398409530,1765617099375,-639.5,0.00029315,3]
[398409531,1765617099384,-500.0,0.00029315,3]
[398409532,1765617099393,-500.0,0.00029315,3]
[398409533,1765617099403,-3077.68,0.00029315,2]
[398409534,1765617099412,-500.0,0.00029315,3]
[398409535,1765617099422,-593.39,0.00029315,3]
[398409536,1765617099431,-2235.67,0.00029315,3]
[398409537,1765617099441,-1390.25,0.00029315,3]
[398409538,1765617099450,-500.0,0.00029315,3]
[398409539,1765617099459,-785.9,0.00029315,3]
[398409540,1765617099468,-500.0,0.00029315,3]
[398409541,1765617099477,-500.0,0.00029315,3]
[398409542,1765617099486,-831.81,0.00029315,3]
[398409543,1765617099495,-1408.37,0.00029315,3]
[398409544,1765617099505,-1689.79,0.00029315,3]
[398409545,1765617099514,-500.0,0.00029315,3]
[398409546,1765617099525,-500.0,0.00029315,3]
[398409547,1765617099535,-500.0,0.00029315,3]
[398409548,1765617099546,-2326.68,0.00029315,3]
[398409549,1765617099556,-824.67,0.00029315,3]
[398409550,1765617099566,-1057.47,0.00029315,3]
[398409551,1765617099576,-504.35069015,0.00029315,3]
[398409552,1765617099586,-500.0,0.00029315,3]
[398409553,1765617099596,-500.0,0.00029315,3]
[398409554,1765617099605,-500.0,0.00029315,3]
[398409555,1765617099615,-500.0,0.00029315,3]
[398409556,1765617099626,-1473.21,0.00029315,3]
[398409557,1765617099637,-500.0,0.00029315,3]
[398409558,1765617099647,-500.0,0.00029315,3]
[398409559,1765617099657,-500.0,0.00029315,3]
[398409560,1765617099667,-500.0,0.00029315,3]
[398409561,1765617099677,-500.0,0.00029315,3]
[398409562,1765617099686,-500.0,0.00029315,3]
[398409563,1765617099696,-417.19925228,0.00029315,3]
[398409564,1765617099706,-846.23,0.00029315,3]
[398409565,1765617099716,-500.94116184,0.00029315,3]
[398409566,1765617099725,-419.42103278,0.00029315,3]
[398409567,1765617099734,-500.0,0.00029315,3]
[398409568,1765617099744,-583.61,0.00029315,3]
[398409569,1765617099753,-626.59,0.00029315,3]
[398409570,1765617099763,-500.0,0.00029315,3]
[398409571,1765617099774,-904.94,0.00029315,3]
[398409572,1765617099783,-220.72941055,0.00029315,3]
[398409573,1765617099793,-500.0,0.00029315,3]
[398409574,1765617099804,-500.0,0.00029315,3]
[398409575,1765617099815,-500.0,0.00029315,3]
[398409576,1765617099824,-585.36086366,0.00029315,3]
[398409577,1765617099833,-500.0,0.00029315,3]
[398409578,1765617099843,-798.1,0.00029315,3]
[398409579,1765617099854,-500.0,0.00029315,3]
[398409580,1765617099863,-1087.52,0.00029315,3]
[398409581,1765617099873,-500.0,0.00029315,3]
[398409582,1765617099884,-500.0,0.00029315,3]
[398409583,1765617099894,-2523.4,0.00029315,3]
[398409584,1765617099903,-1478.52,0.00029315,3]
[398409585,1765617099912,-726.62,0.00029315,3]
[398409586,1765617099923,-500.0,0.00029315,3]
[398409587,1765617099932,-789.39,0.00029315,3]
[398409588,1765617100002,-358.32899942,0.00029315,3]
[398409589,1765617100011,-500.0,0.00029315,3]
[398409590,1765617100021,-577.02,0.00029315,3]
[398409591,1765617100031,-1260.15,0.00029315,3]
[398409592,1765617100040,-707.76,0.00029315,3]
[398409593,1765617100049,-500.0,0.00029315,3]
[398409594,1765617100058,-500.0,0.00029315,3]
[398409595,1765617100067,-500.0,0.00029315,3]
[398409596,1765617100076,-857.63,0.00029315,3]
[398409597,1765617100087,-500.0,0.00029315,3]
[398409598,1765617100097,-344.74140831,0.00029315,3]
[398409599,1765617100106,-1622.32,0.00029315,3]
[398409600,1765617100115,-500.0,0.00029315,3]
[398409601,1765617100124,-500.0,0.00029315,3]
[398409602,1765617100133,-500.0,0.00029315,3]
[398409603,1765617100143,-500.0,0.00029315,3]
[398409604,1765617100152,-806.44,0.00029315,3]
[398409605,1765617100161,-500.0,0.00029315,3]
[398409606,1765617100171,-1000.0,0.00029315,2]
[398409607,1765617100180,-500.0,0.00029315,3]
[398409608,1765617100189,-1112.91,0.00029315,3]
[398409609,1765617100198,-500.0,0.00029315,3]
[398409610,1765617100207,-500.0,0.00029315,2]
[398409611,1765617100217,-896.63,0.00029315,3]
[398409612,1765617100226,-500.0,0.00029315,3]
[398409613,1765617100236,-500.0,0.00029315,3]
[398409614,1765617100246,-500.0,0.00029315,3]
[398409615,1765617100255,-500.0,0.00029315,3]
[398409616,1765617100265,-624.5,0.00029315,3]
[398409617,1765617100274,-500.0,0.00029315,3]
[398409618,1765617100283,-500.0,0.00029315,3]
[398409619,1765617100293,-500.0,0.00029315,3]
[398409620,1765617100302,-654.65,0.00029315,3]
[398409621,1765617100314,-436.39505001,0.00029315,3]
[398409622,1765617100323,-500.0,0.00029315,3]
[398409623,1765617100334,-500.0,0.00029315,3]
[398409624,1765617100343,-500.0,0.00029315,3]
[398409625,1765617100352,-583.25,0.00029315,3]
[398409626,1765617100364,-500.0,0.00029315,3]
[398409627,1765617100373,-899.34,0.00029315,3]
[398409628,1765617100382,-1121.98,0.00029315,3]
[398409629,1765617100392,-500.0,0.00029315,3]
[398409630,1765617100401,-500.0,0.00029315,3]
[398409631,1765617100410,-595.67,0.00029315,3]
[398409632,1765617100420,-439.75589261,0.00029315,3]
[398409633,1765617100429,-547.85,0.00029315,3]
[398409634,1765617100438,-500.0,0.00029315,3]
[398409635,1765617100447,-892.15,0.00029315,3]
[398409636,1765617100457,-500.0,0.00029315,3]
[398409637,1765617100466,-500.0,0.00029315,3]
[398409638,1765617100475,-500.0,0.00029315,3]
[398409639,1765617100486,-500.0,0.00029315,3]
[398409640,1765617100495,-500.0,0.00029315,3]
[398409641,1765617100504,-500.0,0.00029315,3]
[398409642,1765617100513,-500.0,0.00029315,3]
[398409643,1765617100523,-500.0,0.00029315,3]
[398409644,1765617100532,-2540.36,0.00029315,3]
[398409645,1765617100542,-821.39,0.00029315,3]
[398409646,1765617100551,-500.0,0.00029315,3]
[398409647,1765617100560,-785.87,0.00029315,3]
[398409648,1765617100570,-500.0,0.00029315,3]
[398409649,1765617100579,-500.0,0.00029315,3]
[398409650,1765617100589,-500.0,0.00029315,2]
[398409651,1765617100598,-500.0,0.00029315,3]
[398409652,1765617100607,-500.0,0.00029315,3]
[398409653,1765617100617,-1790.33,0.00029315,3]
[398409654,1765617100628,-500.0,0.00029315,3]
[398409655,1765617100639,-500.0,0.00029315,3]
[398409656,1765617100652,-500.0,0.00029315,3]
[398409657,1765617100662,-1160.64,0.00029315,3]
[398409658,1765617100672,-500.0,0.00029315,3]
[398409659,1765617100682,-546.42,0.00029315,3]
[398409660,1765617100692,-2190.53,0.00029315,3]
[398409661,1765617100701,-1371.12,0.00029315,3]
[398409662,1765617100711,-1198.16,0.00029315,3]
[398409663,1765617100721,-501.25962142,0.00029315,3]
[398409664,1765617100731,-503.71790423,0.00029315,3]
[398409665,1765617100741,-500.0,0.00029315,3]
[398409666,1765617100751,-1547.34,0.00029315,3]
[398409667,1765617100760,-500.0,0.00029315,3]
[398409668,1765617100771,-2798.21,0.00029315,3]
[398409669,1765617100781,-1546.27,0.00029315,3]
[398409670,1765617100790,-500.0,0.00029315,3]
[398409671,1765617100799,-500.0,0.00029315,3]
[398409672,1765617100809,-1706.88,0.00029315,3]
[398409673,1765617100819,-651.93,0.00029315,3]
[398409674,1765617100828,-500.0,0.00029315,3]
[398409675,1765617100838,-649.92,0.00029315,3]
[398409676,1765617100849,-500.0,0.00029315,3]
[398409677,1765617100860,-472.1506511,0.00029315,3]
[398409678,1765617100870,-1655.21,0.00029315,3]
[398409679,1765617100880,-500.0,0.00029315,3]
[398409680,1765617100890,-532.96,0.00029315,3]
[398409681,1765617100899,-500.0,0.00029315,3]
[398409682,1765617100909,-503.57,0.00029315,3]
[398409683,1765617100919,-652.81,0.00029315,3]
[398409684,1765617100928,-1422.67,0.00029315,3]
[398409685,1765617100937,-589.78,0.00029315,3]
[398409686,1765617100947,-2352.96,0.00029315,3]
[398409687,1765617100956,-500.0,0.00029315,3]
[398409688,1765617100966,-2666.95,0.00029315,3]
[398409689,1765617100975,-500.0,0.00029315,3]
[398409690,1765617100985,-500.0,0.00029315,3]
[398409691,1765617100995,-500.0,0.00029315,3]
[398409692,1765617101006,-851.44,0.00029315,3]
[398409693,1765617101016,-500.0,0.00029315,3]
[398409694,1765617101025,-819.63,0.00029315,3]
[398409695,1765617101034,-500.0,0.00029315,3]
[398409696,1765617101043,-500.0,0.00029315,3]
[398409697,1765617101052,-2653.96,0.00029315,3]
[398409698,1765617101062,-927.33,0.00029315,3]
[398409699,1765617101071,-500.0,0.00029315,3]
[398409700,1765617101081,-624.82345439,0.00029315,3]
[398409701,1765617101090,-710.47,0.00029315,3]
[398409702,1765617101099,-500.0,0.00029315,3]
[398409703,1765617101108,-1285.14,0.00029315,3]
[398409704,1765617101118,-500.0,0.00029315,3]
[398409705,1765617101127,-500.0,0.00029315,3]
[398409706,1765617101136,-1412.4,0.00029315,3]
[398409707,1765617101146,-500.0,0.00029315,3]
[398409708,1765617101155,-624.02,0.00029315,3]
[398409709,1765617101165,-500.0,0.00029315,3]
[398409710,1765617101175,-533.34,0.00029315,3]
[398409711,1765617101184,-500.0,0.00029315,3]
[398409712,1765617101194,-848.09,0.00029315,3]
[398409713,1765617101204,-500.0,0.00029315,3]
[398409714,1765617101213,-1628.79,0.00029315,3]
[398409715,1765617101224,-500.0,0.00029315,3]
[398409716,1765617101236,-500.0,0.00029315,3]
[398409717,1765617101246,-634.25758285,0.00029315,3]
[398409718,1765617101256,-2704.91,0.00029315,3]
[398409719,1765617101265,-895.83,0.00029315,3]
[398409720,1765617101275,-500.0,0.00029315,3]
[398409721,1765617101284,-875.5,0.00029315,3]
[398409722,1765617101294,-813.49,0.00029315,3]
[398409723,1765617101304,-500.0,0.00029315,3]
[398409724,1765617101313,-500.0,0.00029315,3]
[398409725,1765617101323,-987.93,0.00029315,3]
[398409726,1765617101333,-500.0,0.00029315,3]
[398409727,1765617101345,-778.78,0.00029315,3]
[398409728,1765617101355,-2765.6,0.00029315,3]
[398409729,1765617101368,-500.0,0.00029315,3]
[398409730,1765617101377,-500.0,0.00029315,3]
[398409731,1765617101387,-500.0,0.00029315,3]
[398409732,1765617101398,-1297.16,0.00029315,3]
[398409733,1765617101410,-500.0,0.00029315,3]
[398409734,1765617101419,-500.0,0.00029315,3]
[398409735,1765617101430,-500.0,0.00029315,3]
[398409736,1765617101440,-835.29,0.00029315,3]
[398409737,1765617101450,-1308.02,0.00029315,3]
[398409738,1765617101461,-1550.27,0.00029315,3]
[398409739,1765617101471,-500.0,0.00029315,3]
[398409740,1765617101481,-609.11,0.00029315,3]
[398409741,1765617101491,-1130.18,0.00029315,3]
[398409742,1765617101502,-500.0,0.00029315,3]
[398409743,1765617101512,-960.39,0.00029315,3]
[398409744,1765617101522,-1159.91,0.00029315,3]
[398409745,1765617101534,-500.0,0.00029315,3]
[398409746,1765617101544,-500.0,0.00029315,3]
[398409747,1765617101554,-807.67,0.00029315,3]
[398409748,1765617101563,-500.0,0.00029315,3]
[398409749,1765617101573,-576.35,0.00029315,3]
[398409750,1765617101593,-500.0,0.00029315,3]
[398409751,1765617101605,-500.0,0.00029315,3]
[398409752,1765617101615,-1599.25,0.00029315,3]
[398409753,1765617101625,-1139.23,0.00029315,3]
[398409754,1765617101637,-1513.97,0.00029315,3]
[398409755,1765617101648,-500.0,0.00029315,3]
[398409756,1765617101658,-500.0,0.00029315,3]
[398409757,1765617101670,-500.0,0.00029315,3]
[398409758,1765617101682,-842.23,0.00029315,3]
[398409759,1765617101694,-1111.13,0.00029315,3]
[398409760,1765617101706,-2647.09,0.00029315,3]
[398409761,1765617101717,-512.22,0.00029315,3]
[398409762,1765617101727,-640.86470396,0.00029315,3]
[398409763,1765617101738,-500.0,0.00029315,3]
[398409764,1765617101748,-500.0,0.00029315,3]
[398409765,1765617101758,-500.0,0.00029315,3]
[398409767,1765617101769,-617.3,0.00029315,3]
[398409768,1765617101780,-1129.44,0.00029315,3]
[398409769,1765617101791,-504.63,0.00029315,3]
[398409770,1765617101802,-500.0,0.00029315,3]
[398409771,1765617101814,-500.0,0.00029315,3]
[398409772,1765617101823,-1042.65,0.00029315,3]
[398409773,1765617101834,-1774.87,0.00029315,3]
[398409774,1765617101844,-500.0,0.00029315,3]
[398409775,1765617101854,-500.0,0.00029315,3]
[398409776,1765617101864,-983.64,0.00029315,3]
[398409777,1765617101874,-1028.12,0.00029315,3]
[398409778,1765617101885,-500.0,0.00029315,3]
[398409779,1765617101895,-1971.47,0.00029315,3]
[398409780,1765617101907,-500.0,0.00029315,3]
[398409781,1765617101920,-500.0,0.00029315,3]
[398409782,1765617101933,-500.0,0.00029315,3]
[398409783,1765617101943,-500.0,0.00029315,3]
[398409784,1765617101954,-1206.52,0.00029315,3]
[398409785,1765617101965,-500.0,0.00029315,3]
[398409786,1765617101975,-500.0,0.00029315,3]
[398409787,1765617101986,-500.0,0.00029315,3]
[398409788,1765617101998,-2873.75,0.00029315,3]
[398409789,1765617102012,-500.0,0.00029315,3]
[398409790,1765617102024,-500.0,0.00029315,3]
[398409791,1765617102036,-2079.15,0.00029315,3]
[398409792,1765617102048,-500.0,0.00029315,3]
[398409793,1765617102059,-1274.09,0.00029315,3]
[398409794,1765617102071,-955.7,0.00029315,3]
[398409795,1765617102084,-500.0,0.00029315,3]
[398409796,1765617102095,-1232.72,0.00029315,3]
[398409797,1765617102106,-500.0,0.00029315,3]
[398409798,1765617102117,-500.0,0.00029315,3]
[398409799,1765617102127,-500.0,0.00029315,3]
[398409800,1765617102139,-1057.28,0.00029315,3]
[398409801,1765617102151,-500.0,0.00029315,3]
[398409802,1765617102163,-898.31,0.00029315,3]
[398409803,1765617102174,-500.0,0.00029315,3]
[398409804,1765617102185,-772.85,0.00029315,3]
[398409805,1765617102196,-500.0,0.00029315,3]
[398409806,1765617102206,-819.41,0.00029315,3]
[398409807,1765617102216,-788.38,0.00029315,3]
[398409808,1765617102226,-500.0,0.00029315,3]
[398409809,1765617102236,-748.25,0.00029315,3]
[398409810,1765617102247,-764.33,0.00029315,3]
[398409811,1765617102256,-836.29,0.00029315,3]
[398409812,1765617102266,-500.0,0.00029315,3]
[398409813,1765617102276,-500.0,0.00029315,3]
[398409814,1765617102286,-500.0,0.00029315,3]
[398409815,1765617102296,-500.0,0.00029315,3]
[398409816,1765617102306,-500.0,0.00029315,3]
[398409817,1765617102316,-1629.1,0.00029315,3]
[398409818,1765617102325,-1136.76,0.00029315,3]
[398409819,1765617102339,-500.0,0.00029315,3]
[398409820,1765617102350,-500.0,0.00029315,3]
[398409821,1765617102360,-500.0,0.00029315,3]
[398409822,1765617102371,-500.0,0.00029315,3]
[398409823,1765617102381,-2503.99,0.00029315,3]
[398409824,1765617102391,-500.0,0.00029315,3]
[398409825,1765617102402,-1038.24,0.00029315,3]
[398409826,1765617102412,-842.87,0.00029315,3]
[398409827,1765617102422,-1132.01,0.00029315,3]
[398409828,1765617102432,-723.84,0.00029315,3]
[398409829,1765617102442,-500.0,0.00029315,3]
[398409830,1765617102453,-1106.65,0.00029315,3]
[398409831,1765617102463,-512.36,0.00029315,3]
[398409832,1765617102472,-1634.87,0.00029315,3]
[398409833,1765617102482,-802.8,0.00029315,3]
[398409834,1765617102491,-1706.64,0.00029315,3]
[398409835,1765617102501,-687.9,0.00029315,3]
[398409836,1765617102511,-1633.25,0.00029315,3]
[398409837,1765617102521,-1178.32,0.00029315,3]
[398409838,1765617102531,-978.5,0.00029315,3]
[398409839,1765617102542,-500.0,0.00029315,3]
[398409840,1765617102552,-500.0,0.00029315,3]
[398409841,1765617102562,-500.0,0.00029315,3]
[398409842,1765617102573,-500.0,0.00029315,3]
[398409843,1765617102583,-2394.04,0.00029315,3]
[398409844,1765617102593,-2141.51,0.00029315,3]
[398409845,1765617102605,-958.87,0.00029315,3]
[398409846,1765617102617,-2199.51,0.00029315,3]
[398409847,1765617102629,-1204.0,0.00029315,3]